[Event "GrandPrix_30.05"]
[Site "Chess.com"]
[Date "2020.05.30"]
[Round "5"]
[White "mishikomchedlishvili"]
[Black "vladislavkovalev"]
[Result "0-1"]
[WhiteElo "2534"]
[BlackElo "2821"]
[TimeControl "600+2"]
[EndTime "10:26:55 PDT"]
[Termination "vladislavkovalev won by resignation"]

1. d4 {[%clk 0:10:01.9]} 1... Nf6 {[%clk 0:10:01]} 2. g3 {[%clk 0:09:59.9]} 2...
e6 {[%clk 0:10:01.9]} 3. Bg2 {[%clk 0:09:58.1]} 3... d5 {[%clk 0:10:03.5]} 4.
Nf3 {[%clk 0:09:51.5]} 4... Be7 {[%clk 0:10:04.9]} 5. O-O {[%clk 0:09:51.5]}
5... O-O {[%clk 0:10:06.5]} 6. c4 {[%clk 0:09:51.6]} 6... dxc4 {[%clk
0:10:08.4]} 7. Qc2 {[%clk 0:09:51.9]} 7... a6 {[%clk 0:10:09.5]} 8. Qxc4 {[%clk
0:09:51.3]} 8... b5 {[%clk 0:10:10.2]} 9. Qc2 {[%clk 0:09:51.9]} 9... Bb7 {[%clk
0:10:11.2]} 10. Bd2 {[%clk 0:09:50.9]} 10... Be4 {[%clk 0:10:12.1]} 11. Qc1
{[%clk 0:09:51.6]} 11... Nc6 {[%clk 0:10:13.1]} 12. e3 {[%clk 0:09:27.1]} 12...
b4 {[%clk 0:10:11.6]} 13. Ne1 {[%clk 0:09:06]} 13... Bxg2 {[%clk 0:09:21.1]} 14.
Nxg2 {[%clk 0:09:06.1]} 14... Qd7 {[%clk 0:09:11.7]} 15. Qc4 {[%clk 0:08:31]}
15... Bd6 {[%clk 0:08:05.7]} 16. Rc1 {[%clk 0:08:27.3]} 16... Na5 {[%clk
0:08:01.2]} 17. Qe2 {[%clk 0:08:15.3]} 17... Qb5 {[%clk 0:07:58.7]} 18. Kf1
{[%clk 0:07:54.6]} 18... Rfe8 {[%clk 0:06:38]} 19. Be1 {[%clk 0:06:23]} 19... e5
{[%clk 0:06:37.7]} 20. dxe5 {[%clk 0:06:19]} 20... Bxe5 {[%clk 0:06:30.8]} 21.
Rc2 {[%clk 0:06:18.6]} 21... Qa4 {[%clk 0:05:02.2]} 22. f4 {[%clk 0:04:40.9]}
22... Bd6 {[%clk 0:04:57.5]} 23. Qd3 {[%clk 0:04:27.1]} 23... Ng4 {[%clk
0:04:12.3]} 24. b3 {[%clk 0:04:15]} 24... Qb5 {[%clk 0:04:11.7]} 25. Qxb5 {[%clk
0:03:22.8]} 25... axb5 {[%clk 0:04:13.6]} 26. Rb2 {[%clk 0:03:24.1]} 26... Be7
{[%clk 0:03:32.3]} 27. a3 {[%clk 0:00:50.7]} 27... Bf6 {[%clk 0:02:40.9]} 28.
axb4 {[%clk 0:00:50.1]} 28... Bxb2 {[%clk 0:02:42.3]} 29. Rxa5 {[%clk
0:00:38.2]} 29... Rad8 {[%clk 0:01:40]} 30. Ke2 {[%clk 0:00:29.7]} 30... Bd4
{[%clk 0:01:13.1]} 31. Bd2 {[%clk 0:00:29.7]} 31... Bb6 {[%clk 0:00:41.8]} 32.
Rxb5 {[%clk 0:00:28.9]} 32... Nxh2 {[%clk 0:00:43.2]} 33. Na3 {[%clk 0:00:24.9]}
33... Nf1 {[%clk 0:00:29.7]} 34. Nc4 {[%clk 0:00:13.7]} 34... Nxg3+ {[%clk
0:00:26]} 35. Kf3 {[%clk 0:00:14.6]} 35... Ne4 {[%clk 0:00:27.1]} 36. Be1 {[%clk
0:00:15.7]} 36... Nd6 {[%clk 0:00:22.8]} 37. Rh5 {[%clk 0:00:14]} 37... g6
{[%clk 0:00:21.5]} 38. Rg5 {[%clk 0:00:14.9]} 38... f5 {[%clk 0:00:17.2]} 39.
Bc3 {[%clk 0:00:07.5]} 39... Ne4 {[%clk 0:00:15.1]} 0-1

[Event "GrandPrix_30.05"]
[Site "Chess.com"]
[Date "2020.05.30"]
[Round "5"]
[White "MirMan90"]
[Black "chess_big_master"]
[Result "1-0"]
[WhiteElo "2257"]
[BlackElo "2048"]
[TimeControl "600+2"]
[EndTime "10:27:04 PDT"]
[Termination "MirMan90 won by resignation"]

1. d4 {[%clk 0:10:01.9]} 1... d5 {[%clk 0:09:52.2]} 2. c4 {[%clk 0:10:02.7]}
2... e6 {[%clk 0:09:53.1]} 3. Nf3 {[%clk 0:10:02.9]} 3... Nf6 {[%clk 0:09:53.9]}
4. Nc3 {[%clk 0:10:02.5]} 4... Bb4 {[%clk 0:09:54.7]} 5. Qb3 {[%clk 0:09:55]}
5... c5 {[%clk 0:09:49.5]} 6. dxc5 {[%clk 0:09:55.2]} 6... Nc6 {[%clk
0:09:35.5]} 7. Bg5 {[%clk 0:09:25.7]} 7... Qa5 {[%clk 0:09:16]} 8. Bxf6 {[%clk
0:09:10.9]} 8... gxf6 {[%clk 0:09:15.2]} 9. cxd5 {[%clk 0:08:28.1]} 9... exd5
{[%clk 0:09:09.7]} 10. e3 {[%clk 0:08:21.7]} 10... Be6 {[%clk 0:09:03.5]} 11.
Nd4 {[%clk 0:08:04.2]} 11... Qxc5 {[%clk 0:08:56.2]} 12. Bb5 {[%clk 0:06:26]}
12... O-O {[%clk 0:08:26.8]} 13. Bxc6 {[%clk 0:06:24.4]} 13... bxc6 {[%clk
0:08:07.7]} 14. Nxc6 {[%clk 0:05:32.6]} 14... Qxc6 {[%clk 0:06:18.2]} 15. Qxb4
{[%clk 0:05:31.9]} 15... Rfb8 {[%clk 0:05:48.3]} 16. Qd4 {[%clk 0:05:09.8]}
16... Rxb2 {[%clk 0:05:18.1]} 17. O-O {[%clk 0:04:40.6]} 17... Rc2 {[%clk
0:02:57]} 18. Rac1 {[%clk 0:04:38.1]} 18... Rxc1 {[%clk 0:02:53.7]} 19. Rxc1
{[%clk 0:04:40]} 19... Rc8 {[%clk 0:02:44]} 20. Qxf6 {[%clk 0:04:39.5]} 20...
Qc4 {[%clk 0:02:26.9]} 21. h4 {[%clk 0:02:56]} 21... Qg4 {[%clk 0:01:35.7]} 22.
f3 {[%clk 0:02:26.1]} 22... Qb4 {[%clk 0:01:10.3]} 23. Rc2 {[%clk 0:01:52.7]}
23... Qc4 {[%clk 0:00:18.6]} 24. Qd4 {[%clk 0:01:25.7]} 24... Qxd4 {[%clk
0:00:17.1]} 25. exd4 {[%clk 0:01:27.2]} 25... Rc4 {[%clk 0:00:18.3]} 26. Kf2
{[%clk 0:01:03.6]} 26... Rxd4 {[%clk 0:00:19.1]} 27. Nb5 {[%clk 0:01:04.5]}
27... Ra4 {[%clk 0:00:13.7]} 28. Ke3 {[%clk 0:01:03]} 28... a6 {[%clk
0:00:13.7]} 29. Nd4 {[%clk 0:01:03.4]} 29... Kg7 {[%clk 0:00:12.6]} 30. g4
{[%clk 0:01:04]} 30... Kf6 {[%clk 0:00:13.3]} 31. g5+ {[%clk 0:00:50.7]} 31...
Ke7 {[%clk 0:00:12]} 32. f4 {[%clk 0:00:51]} 32... Kd6 {[%clk 0:00:12.3]} 33.
Rc6+ {[%clk 0:00:47]} 33... Kd7 {[%clk 0:00:09.6]} 34. Rb6 {[%clk 0:00:47]}
34... Ra3+ {[%clk 0:00:09]} 35. Rb3 {[%clk 0:00:46.1]} 35... Rxb3+ {[%clk
0:00:09.2]} 36. axb3 {[%clk 0:00:46.9]} 36... Bh3 {[%clk 0:00:09.4]} 37. Nf3
{[%clk 0:00:43]} 37... Kd6 {[%clk 0:00:08.1]} 38. Kd4 {[%clk 0:00:44.3]} 38...
Be6 {[%clk 0:00:06.6]} 39. b4 {[%clk 0:00:45.2]} 39... Kc6 {[%clk 0:00:07.2]}
40. Ke5 {[%clk 0:00:41.9]} 40... Kb5 {[%clk 0:00:08.2]} 41. f5 {[%clk
0:00:41.2]} 41... Bc8 {[%clk 0:00:06.9]} 42. h5 {[%clk 0:00:39.5]} 42... Kxb4
{[%clk 0:00:03.4]} 43. g6 {[%clk 0:00:40.9]} 43... fxg6 {[%clk 0:00:04.3]} 44.
fxg6 {[%clk 0:00:41]} 44... hxg6 {[%clk 0:00:03.1]} 45. h6 {[%clk 0:00:42.5]}
45... d4 {[%clk 0:00:02.3]} 46. h7 {[%clk 0:00:41.7]} 46... Bb7 {[%clk
0:00:02.1]} 47. Nxd4 {[%clk 0:00:42.1]} 47... a5 {[%clk 0:00:03.6]} 48. h8=Q
{[%clk 0:00:43.3]} 48... a4 {[%clk 0:00:04.5]} 49. Qb8 {[%clk 0:00:44.2]} 1-0

[Event "GrandPrix_30.05"]
[Site "Chess.com"]
[Date "2020.05.30"]
[Round "5"]
[White "tacticthunder"]
[Black "Saqo007"]
[Result "1-0"]
[WhiteElo "2222"]
[BlackElo "2128"]
[TimeControl "600+2"]
[EndTime "10:27:06 PDT"]
[Termination "tacticthunder won by resignation"]

1. e4 {[%clk 0:10:01.9]} 1... c5 {[%clk 0:09:58.7]} 2. Nf3 {[%clk 0:10:01.9]}
2... d6 {[%clk 0:09:53.5]} 3. d4 {[%clk 0:10:02.2]} 3... cxd4 {[%clk 0:09:55.4]}
4. Nxd4 {[%clk 0:10:03.4]} 4... Nf6 {[%clk 0:09:57]} 5. Nc3 {[%clk 0:10:03.7]}
5... g6 {[%clk 0:09:58.3]} 6. Be2 {[%clk 0:10:03.6]} 6... Bg7 {[%clk 0:09:59.5]}
7. O-O {[%clk 0:10:04.8]} 7... O-O {[%clk 0:10:01.1]} 8. Be3 {[%clk 0:10:05.8]}
8... Nc6 {[%clk 0:10:02.6]} 9. Qd2 {[%clk 0:10:06.3]} 9... d5 {[%clk 0:10:03.5]}
10. Nxc6 {[%clk 0:10:01.7]} 10... bxc6 {[%clk 0:10:02.6]} 11. e5 {[%clk
0:10:01.5]} 11... Ne4 {[%clk 0:09:59.5]} 12. Nxe4 {[%clk 0:09:54.9]} 12... dxe4
{[%clk 0:10:01.4]} 13. Qc3 {[%clk 0:09:43.1]} 13... Qd5 {[%clk 0:09:36.9]} 14.
Bf4 {[%clk 0:09:11.9]} 14... c5 {[%clk 0:09:00.2]} 15. Rfd1 {[%clk 0:08:29.6]}
15... Qc6 {[%clk 0:08:58.9]} 16. b4 {[%clk 0:08:13.9]} 16... Be6 {[%clk
0:08:49.5]} 17. b5 {[%clk 0:07:06.2]} 17... Qc7 {[%clk 0:08:38.8]} 18. a4 {[%clk
0:07:05.4]} 18... h5 {[%clk 0:08:20.6]} 19. h4 {[%clk 0:06:49.6]} 19... f6
{[%clk 0:07:16.4]} 20. Bc4 {[%clk 0:06:22.6]} 20... Bxc4 {[%clk 0:06:57.5]} 21.
Qxc4+ {[%clk 0:06:24.5]} 21... Kh7 {[%clk 0:06:59]} 22. Rd5 {[%clk 0:06:22.9]}
22... fxe5 {[%clk 0:06:54.9]} 23. Be3 {[%clk 0:06:22.4]} 23... a6 {[%clk
0:06:03.7]} 24. Rad1 {[%clk 0:06:07.7]} 24... axb5 {[%clk 0:06:03]} 25. axb5
{[%clk 0:06:09.6]} 25... Bf6 {[%clk 0:04:11]} 26. Rd7 {[%clk 0:05:47.6]} 26...
Qb6 {[%clk 0:03:55.1]} 27. Qxc5 {[%clk 0:02:18.5]} 27... Qe6 {[%clk 0:03:45.5]}
28. b6 {[%clk 0:02:04.8]} 28... Rac8 {[%clk 0:03:19.3]} 29. Qd5 {[%clk
0:01:58.4]} 29... Qg4 {[%clk 0:03:15.4]} 30. b7 {[%clk 0:01:46.1]} 30... Rxc2
{[%clk 0:03:15.7]} 31. Rb1 {[%clk 0:00:39.9]} 31... Bxh4 {[%clk 0:02:19.2]} 32.
b8=Q {[%clk 0:00:38.2]} 32... Bxf2+ {[%clk 0:00:13.9]} 33. Bxf2 {[%clk
0:00:36.5]} 33... Rcxf2 {[%clk 0:00:15.4]} 34. Rxe7+ {[%clk 0:00:34.7]} 34...
Kh6 {[%clk 0:00:16.8]} 35. Qxf8+ {[%clk 0:00:20.1]} 35... Rxf8 {[%clk
0:00:18.7]} 36. Qxe5 {[%clk 0:00:16.9]} 36... Rf5 {[%clk 0:00:19.7]} 37. Qg7+
{[%clk 0:00:14.8]} 37... Kg5 {[%clk 0:00:20.5]} 38. Re5 {[%clk 0:00:15]} 38...
e3 {[%clk 0:00:19.8]} 39. Rxf5+ {[%clk 0:00:14.2]} 39... Qxf5 {[%clk 0:00:21.7]}
40. Qe7+ {[%clk 0:00:11.9]} 40... Kg4 {[%clk 0:00:19.6]} 41. Rb4+ {[%clk
0:00:11.9]} 41... Kg3 {[%clk 0:00:13]} 42. Qxe3+ {[%clk 0:00:10.7]} 1-0

[Event "GrandPrix_30.05"]
[Site "Chess.com"]
[Date "2020.05.30"]
[Round "5"]
[White "DinaBelenkaya"]
[Black "rfhfb"]
[Result "1/2-1/2"]
[WhiteElo "1637"]
[BlackElo "2105"]
[TimeControl "600+2"]
[EndTime "10:27:07 PDT"]
[Termination "Game drawn by repetition"]

1. e4 {[%clk 0:10:01.9]} 1... e5 {[%clk 0:10:00.1]} 2. Nf3 {[%clk 0:10:02]} 2...
Nc6 {[%clk 0:10:01.4]} 3. d4 {[%clk 0:10:02.6]} 3... exd4 {[%clk 0:10:01.3]} 4.
Nxd4 {[%clk 0:10:04.5]} 4... Nf6 {[%clk 0:10:02.3]} 5. Nxc6 {[%clk 0:10:04.1]}
5... bxc6 {[%clk 0:10:00.9]} 6. Bd3 {[%clk 0:10:06]} 6... d5 {[%clk 0:09:38.4]}
7. exd5 {[%clk 0:10:00.2]} 7... cxd5 {[%clk 0:09:35.8]} 8. O-O {[%clk
0:10:00.7]} 8... Be7 {[%clk 0:09:36.8]} 9. c4 {[%clk 0:10:01]} 9... c6 {[%clk
0:09:32.2]} 10. Nc3 {[%clk 0:09:51.6]} 10... O-O {[%clk 0:09:30.6]} 11. Bg5
{[%clk 0:09:31.9]} 11... Be6 {[%clk 0:09:15.7]} 12. cxd5 {[%clk 0:08:23.7]}
12... cxd5 {[%clk 0:09:12.5]} 13. h3 {[%clk 0:08:06.2]} 13... h6 {[%clk
0:08:38.1]} 14. Be3 {[%clk 0:07:49]} 14... Nd7 {[%clk 0:07:54.6]} 15. Nb5 {[%clk
0:07:33.9]} 15... Bf6 {[%clk 0:07:50.9]} 16. Nd4 {[%clk 0:07:14.8]} 16... Nc5
{[%clk 0:07:27.7]} 17. Bc2 {[%clk 0:06:58.9]} 17... Rc8 {[%clk 0:07:14.1]} 18.
Rc1 {[%clk 0:06:41.2]} 18... a6 {[%clk 0:06:13.9]} 19. b4 {[%clk 0:06:00.1]}
19... Ne4 {[%clk 0:05:40.1]} 20. Nxe6 {[%clk 0:04:40.8]} 20... fxe6 {[%clk
0:05:37.4]} 21. Bxe4 {[%clk 0:04:40.2]} 21... dxe4 {[%clk 0:05:38.2]} 22. Bc5
{[%clk 0:04:26.7]} 22... Rf7 {[%clk 0:04:51.3]} 23. Qxd8+ {[%clk 0:02:47.3]}
23... Rxd8 {[%clk 0:04:53.2]} 24. Rfd1 {[%clk 0:02:35.2]} 24... Rd3 {[%clk
0:04:08.7]} 25. Kf1 {[%clk 0:02:15.9]} 25... Rfd7 {[%clk 0:02:42.8]} 26. Ke2
{[%clk 0:02:16.4]} 26... Bg5 {[%clk 0:02:40.4]} 27. Be3 {[%clk 0:01:54.1]} 27...
Bxe3 {[%clk 0:02:40.5]} 28. fxe3 {[%clk 0:01:53.6]} 28... Rb7 {[%clk 0:02:40]}
29. Rxd3 {[%clk 0:01:25.1]} 29... exd3+ {[%clk 0:02:40.9]} 30. Kxd3 {[%clk
0:01:26.8]} 30... Rxb4 {[%clk 0:02:42.3]} 31. Rc6 {[%clk 0:00:42.5]} 31... Ra4
{[%clk 0:02:41]} 32. Rxe6 {[%clk 0:00:41.6]} 32... Rxa2 {[%clk 0:02:42.1]} 33.
g4 {[%clk 0:00:41.8]} 33... Kf7 {[%clk 0:02:38.4]} 34. Rb6 {[%clk 0:00:39.9]}
34... Ra4 {[%clk 0:02:07.6]} 35. Ke2 {[%clk 0:00:31.8]} 35... a5 {[%clk
0:01:38]} 36. Ra6 {[%clk 0:00:30.1]} 36... Ra1 {[%clk 0:01:17.1]} 37. Kf3 {[%clk
0:00:30.2]} 37... a4 {[%clk 0:01:18.5]} 38. h4 {[%clk 0:00:29.7]} 38... a3
{[%clk 0:01:01.1]} 39. h5 {[%clk 0:00:28]} 39... Rf1+ {[%clk 0:00:59.2]} 40. Ke4
{[%clk 0:00:29]} 40... Rg1 {[%clk 0:00:49.2]} 41. Kf5 {[%clk 0:00:28.8]} 41...
Rf1+ {[%clk 0:00:49.5]} 42. Ke5 {[%clk 0:00:29.8]} 42... Rg1 {[%clk 0:00:38.1]}
43. Ra7+ {[%clk 0:00:25.9]} 43... Kg8 {[%clk 0:00:33.7]} 44. Kf5 {[%clk
0:00:26.1]} 44... Rf1+ {[%clk 0:00:30.1]} 45. Ke5 {[%clk 0:00:27.3]} 45... Rg1
{[%clk 0:00:31.1]} 46. Kf5 {[%clk 0:00:12.5]} 46... Rf1+ {[%clk 0:00:31.7]} 47.
Ke5 {[%clk 0:00:12.6]} 47... Rg1 {[%clk 0:00:24.1]} 1/2-1/2

[Event "GrandPrix_30.05"]
[Site "Chess.com"]
[Date "2020.05.30"]
[Round "5"]
[White "Haykos"]
[Black "SavelijTartakover"]
[Result "1/2-1/2"]
[WhiteElo "2273"]
[BlackElo "2478"]
[TimeControl "600+2"]
[EndTime "10:27:16 PDT"]
[Termination "Game drawn by agreement"]

1. e4 {[%clk 0:10:01.4]} 1... e6 {[%clk 0:09:58]} 2. d4 {[%clk 0:09:53.7]} 2...
d5 {[%clk 0:09:58.5]} 3. Nd2 {[%clk 0:09:54.5]} 3... c5 {[%clk 0:09:58.8]} 4.
dxc5 {[%clk 0:09:55.4]} 4... Bxc5 {[%clk 0:09:58.3]} 5. Bd3 {[%clk 0:09:56.9]}
5... Nf6 {[%clk 0:09:55.1]} 6. Qe2 {[%clk 0:09:58.1]} 6... Nc6 {[%clk
0:09:53.3]} 7. Ngf3 {[%clk 0:09:59.3]} 7... Nb4 {[%clk 0:09:50.9]} 8. e5 {[%clk
0:09:57.4]} 8... Nxd3+ {[%clk 0:09:43.5]} 9. cxd3 {[%clk 0:09:52.6]} 9... Nd7
{[%clk 0:09:43.4]} 10. O-O {[%clk 0:09:53.7]} 10... b6 {[%clk 0:09:40.1]} 11.
Nb3 {[%clk 0:09:45.6]} 11... Ba6 {[%clk 0:09:34.6]} 12. Bg5 {[%clk 0:09:20.7]}
12... Qb8 {[%clk 0:09:23.2]} 13. Rfc1 {[%clk 0:09:20.9]} 13... h6 {[%clk
0:09:19.6]} 14. Bh4 {[%clk 0:09:17]} 14... O-O {[%clk 0:09:16.2]} 15. Bg3 {[%clk
0:08:40.1]} 15... Rc8 {[%clk 0:09:09.8]} 16. Nbd4 {[%clk 0:08:27.2]} 16... Qb7
{[%clk 0:09:02.8]} 17. a3 {[%clk 0:08:23.5]} 17... Bxd4 {[%clk 0:08:48]} 18.
Nxd4 {[%clk 0:08:24.2]} 18... Rxc1+ {[%clk 0:08:45.9]} 19. Rxc1 {[%clk
0:08:24.3]} 19... Rc8 {[%clk 0:08:46.9]} 20. Rd1 {[%clk 0:06:18.3]} 20... Qc7
{[%clk 0:07:58]} 21. f4 {[%clk 0:06:17.1]} 21... Nc5 {[%clk 0:07:31.3]} 22. h3
{[%clk 0:04:14.5]} 22... Nxd3 {[%clk 0:06:29.3]} 23. Rxd3 {[%clk 0:04:15.1]}
23... Qc4 {[%clk 0:06:29.7]} 24. Rd2 {[%clk 0:04:01.5]} 24... Qxd4+ {[%clk
0:06:25.4]} 25. Rxd4 {[%clk 0:04:03.2]} 25... Bxe2 {[%clk 0:06:25.8]} 26. Rd2
{[%clk 0:03:43.7]} 26... Rc1+ {[%clk 0:06:08.5]} 27. Kh2 {[%clk 0:03:44.3]}
27... Bc4 {[%clk 0:06:05.5]} 28. Bf2 {[%clk 0:03:36.9]} 28... Kf8 {[%clk
0:05:46]} 29. Bd4 {[%clk 0:02:54.2]} 29... Ke8 {[%clk 0:05:42.5]} 30. Kg3 {[%clk
0:02:32.5]} 30... Kd7 {[%clk 0:05:37.4]} 31. Kf3 {[%clk 0:02:31.3]} 31... Kc6
{[%clk 0:05:28.8]} 32. g4 {[%clk 0:02:12.9]} 32... g6 {[%clk 0:05:28.6]} 33. Be3
{[%clk 0:01:55.3]} 33... Re1 {[%clk 0:04:46.7]} 34. f5 {[%clk 0:01:09.7]} 34...
exf5 {[%clk 0:04:38.7]} 35. gxf5 {[%clk 0:01:04.4]} 35... gxf5 {[%clk 0:04:39]}
36. Bxh6 {[%clk 0:01:04.9]} 36... Rxe5 {[%clk 0:04:38.9]} 37. Bf4 {[%clk
0:00:23.8]} 37... Re1 {[%clk 0:04:21.3]} 38. h4 {[%clk 0:00:21.2]} 38... Rh1
{[%clk 0:04:20.3]} 39. Rh2 {[%clk 0:00:22.1]} 39... Rxh2 {[%clk 0:04:00]} 40.
Bxh2 {[%clk 0:00:24]} 40... d4 {[%clk 0:03:49.5]} 41. h5 {[%clk 0:00:22.7]}
41... f6 {[%clk 0:03:43.1]} 42. Bg1 {[%clk 0:00:18.8]} 42... d3 {[%clk
0:03:25.3]} 43. Ke3 {[%clk 0:00:16.2]} 43... f4+ {[%clk 0:03:13.4]} 44. Kd2
{[%clk 0:00:17.4]} 44... Bf7 {[%clk 0:02:51.6]} 45. Kxd3 {[%clk 0:00:17.7]}
45... Bxh5 {[%clk 0:02:52]} 46. Bd4 {[%clk 0:00:19.1]} 46... f5 {[%clk
0:02:51.4]} 47. Be5 {[%clk 0:00:18.5]} 47... f3 {[%clk 0:02:51.6]} 48. Ke3
{[%clk 0:00:19.8]} 48... Kd5 {[%clk 0:02:41.6]} 49. Bb8 {[%clk 0:00:14.3]} 49...
a5 {[%clk 0:02:42.2]} 50. Bc7 {[%clk 0:00:14.7]} 50... Kc6 {[%clk 0:02:42.7]}
51. Be5 {[%clk 0:00:15.4]} 51... Kc5 {[%clk 0:02:34.5]} 52. Bd4+ {[%clk
0:00:16.3]} 52... Kb5 {[%clk 0:02:33.5]} 53. Bf6 {[%clk 0:00:15.8]} 53... Ka4
{[%clk 0:02:28]} 54. Bd4 {[%clk 0:00:15.9]} 54... b5 {[%clk 0:02:26]} 55. Bc3
{[%clk 0:00:13.8]} 55... f4+ {[%clk 0:02:23.4]} 56. Kf2 {[%clk 0:00:14]} 56...
Bg4 {[%clk 0:02:24]} 57. Bd2 {[%clk 0:00:14.4]} 57... Bh5 {[%clk 0:02:07.5]} 58.
Bc3 {[%clk 0:00:12]} 58... b4 {[%clk 0:02:00.7]} 59. axb4 {[%clk 0:00:13]} 59...
axb4 {[%clk 0:02:01.7]} 60. Be5 {[%clk 0:00:14.7]} 60... Kb3 {[%clk 0:02:01.4]}
61. Bd6 {[%clk 0:00:16.1]} 61... Bg4 {[%clk 0:01:59.5]} 62. Be7 {[%clk
0:00:16.6]} 62... Kc4 {[%clk 0:02:00.1]} 63. Bd6 {[%clk 0:00:17.2]} 63... Bh5
{[%clk 0:01:59.9]} 64. Bxf4 {[%clk 0:00:18.2]} 64... Kd3 {[%clk 0:01:59.4]} 65.
Bd6 {[%clk 0:00:19.4]} 65... b3 {[%clk 0:01:59.5]} 66. Be5 {[%clk 0:00:20.7]}
1/2-1/2

[Event "GrandPrix_30.05"]
[Site "Chess.com"]
[Date "2020.05.30"]
[Round "5"]
[White "yamalchess"]
[Black "PlayChessSimple"]
[Result "1-0"]
[WhiteElo "2364"]
[BlackElo "2173"]
[TimeControl "600+2"]
[EndTime "10:27:18 PDT"]
[Termination "yamalchess won by resignation"]

1. d4 {[%clk 0:10:01.5]} 1... e6 {[%clk 0:09:57.8]} 2. c4 {[%clk 0:09:59.9]}
2... f5 {[%clk 0:09:58.6]} 3. Nc3 {[%clk 0:09:55.6]} 3... Nf6 {[%clk 0:09:59.3]}
4. Bf4 {[%clk 0:09:55.2]} 4... g6 {[%clk 0:09:59.2]} 5. h4 {[%clk 0:09:53]} 5...
Bg7 {[%clk 0:09:52.8]} 6. e3 {[%clk 0:09:49.6]} 6... O-O {[%clk 0:09:36.4]} 7.
Be2 {[%clk 0:09:40.9]} 7... h6 {[%clk 0:09:36.5]} 8. g4 {[%clk 0:09:32]} 8...
fxg4 {[%clk 0:08:50]} 9. Bd3 {[%clk 0:08:42.6]} 9... Nc6 {[%clk 0:07:39.6]} 10.
Bxg6 {[%clk 0:08:37.2]} 10... d6 {[%clk 0:07:38.6]} 11. Nge2 {[%clk 0:08:12.1]}
11... e5 {[%clk 0:07:34.2]} 12. Bg3 {[%clk 0:07:32.5]} 12... exd4 {[%clk
0:06:34.9]} 13. Nxd4 {[%clk 0:06:36.1]} 13... Ne5 {[%clk 0:06:20.4]} 14. Bxe5
{[%clk 0:06:29.2]} 14... dxe5 {[%clk 0:06:18.4]} 15. Nf5 {[%clk 0:06:29]} 15...
Be6 {[%clk 0:05:53.1]} 16. Qe2 {[%clk 0:06:02.9]} 16... c6 {[%clk 0:05:41.2]}
17. Rd1 {[%clk 0:05:54.9]} 17... Qc7 {[%clk 0:05:40.8]} 18. Ng3 {[%clk
0:05:01.7]} 18... b5 {[%clk 0:05:20.5]} 19. cxb5 {[%clk 0:04:38.3]} 19... cxb5
{[%clk 0:05:19.9]} 20. Nxb5 {[%clk 0:03:35.5]} 20... Qb7 {[%clk 0:05:01.7]} 21.
Nd6 {[%clk 0:03:26.8]} 21... Qb4+ {[%clk 0:03:56.3]} 22. Qd2 {[%clk 0:03:26.8]}
22... Rfb8 {[%clk 0:03:50.4]} 23. Qxb4 {[%clk 0:03:24.6]} 23... Rxb4 {[%clk
0:03:51.4]} 24. b3 {[%clk 0:03:25.5]} 24... a5 {[%clk 0:03:46.7]} 25. O-O {[%clk
0:03:17.4]} 25... a4 {[%clk 0:03:46.7]} 26. Bf5 {[%clk 0:03:12.3]} 26... Bxf5
{[%clk 0:03:01.5]} 27. Ndxf5 {[%clk 0:03:12.3]} 27... Bf8 {[%clk 0:02:59.4]} 28.
Rd3 {[%clk 0:03:01.1]} 28... axb3 {[%clk 0:02:56.1]} 29. axb3 {[%clk 0:03:00.9]}
29... Rab8 {[%clk 0:02:50.6]} 30. Rc1 {[%clk 0:02:42.8]} 30... Rxb3 {[%clk
0:02:45.1]} 31. Rxb3 {[%clk 0:02:43.2]} 31... Rxb3 {[%clk 0:02:45.8]} 32. Rc6
{[%clk 0:02:43.4]} 32... Kf7 {[%clk 0:02:39.7]} 33. h5 {[%clk 0:02:27.5]} 33...
e4 {[%clk 0:02:15.5]} 34. Nh4 {[%clk 0:02:20.1]} 34... Rb5 {[%clk 0:02:03.5]}
35. Rc7+ {[%clk 0:02:16.1]} 35... Ke8 {[%clk 0:01:35.2]} 36. Ng6 {[%clk
0:02:09.7]} 36... Bd6 {[%clk 0:01:31.3]} 37. Rc6 {[%clk 0:01:33.4]} 37... Kd7
{[%clk 0:01:31]} 38. Ra6 {[%clk 0:01:32.3]} 38... Ne8 {[%clk 0:00:47.1]} 39.
Nxe4 {[%clk 0:01:30]} 39... Bc7 {[%clk 0:00:36.7]} 40. Nf8+ {[%clk 0:00:49.3]}
40... Ke7 {[%clk 0:00:37.4]} 41. Ne6 {[%clk 0:00:49.8]} 41... Rxh5 {[%clk
0:00:31.3]} 42. Nxc7 {[%clk 0:00:49]} 42... Nxc7 {[%clk 0:00:28.9]} 43. Ra7
{[%clk 0:00:50.1]} 43... Kd8 {[%clk 0:00:26.5]} 44. Kg2 {[%clk 0:00:49.4]} 44...
Rd5 {[%clk 0:00:12.3]} 45. Nf6 {[%clk 0:00:48.8]} 45... Rg5 {[%clk 0:00:11.7]}
46. Kg3 {[%clk 0:00:49.2]} 46... Rg6 {[%clk 0:00:11.7]} 47. Ne4 {[%clk
0:00:49.1]} 47... h5 {[%clk 0:00:12.5]} 48. Kh4 {[%clk 0:00:50]} 48... Re6
{[%clk 0:00:12.2]} 49. Ng3 {[%clk 0:00:49.8]} 49... Rf6 {[%clk 0:00:12.8]} 50.
Ra2 {[%clk 0:00:50.5]} 50... Nd5 {[%clk 0:00:08.2]} 51. Rd2 {[%clk 0:00:49.7]}
51... Rd6 {[%clk 0:00:06.2]} 52. e4 {[%clk 0:00:50.2]} 1-0